bitfinex/quotes_BTCUSD_20260104
["timestamp","ask_amount","ask_price","bid_price","bid_amount"]
[1767562153180,0.01095962,91244.0,91233.0,0.01096094]
[1767562153424,0.0109601,91240.0,91230.0,0.0109613]
[1767562153831,0.01095986,91242.0,91232.0,0.01096106]
[1767562154164,0.01095962,91244.0,91242.0,0.000999]
[1767562154370,0.05641431,91244.0,91242.0,0.000999]
[1767562154697,0.05641431,91244.0,91233.0,0.01096094]
[1767562154698,0.05641431,91244.0,91234.0,0.01096082]
[1767562155692,0.05641431,91244.0,91231.0,0.0630457]
[1767562156271,0.05641431,91244.0,91234.0,0.01096082]
[1767562156716,0.05641431,91244.0,91235.0,0.0109607]
[1767562156867,0.05641431,91244.0,91231.0,0.03512132]
[1767562157857,0.05641431,91244.0,91234.0,0.01096082]
[1767562158201,0.05641431,91244.0,91235.0,0.0109607]
[1767562158806,0.04545469,91244.0,91235.0,0.0109607]
[1767562159233,0.04545469,91244.0,91236.0,0.01096058]
[1767562159387,0.04545469,91244.0,91234.0,0.00795903]
[1767562160234,0.04545469,91244.0,91236.0,0.01096058]
[1767562161171,0.04545469,91244.0,91235.0,0.0109607]
[1767562161352,0.04545469,91244.0,91233.0,0.0657651]
[1767562161858,0.04545469,91244.0,91236.0,0.01096058]
[1767562162206,0.04545469,91244.0,91237.0,0.01096046]
[1767562163563,0.04545469,91244.0,91236.0,0.01096058]
[1767562163756,0.03287938,91246.0,91236.0,0.01096058]
[1767562164682,0.0109595,91245.0,91235.0,0.0109607]
[1767562165187,0.01095962,91244.0,91234.0,0.01096082]
[1767562165546,0.0109595,91245.0,91235.0,0.0109607]
[1767562166089,0.01095974,91243.0,91233.0,0.01096094]
[1767562166868,0.01095986,91242.0,91232.0,0.01591968]
[1767562167128,0.01095974,91243.0,91232.0,0.01591968]
[1767562167129,0.01095974,91243.0,91233.0,0.01096094]
[1767562167402,0.01095986,91242.0,91233.0,0.01096094]
[1767562167599,0.01095986,91242.0,91231.0,0.00796011]
[1767562167805,0.01095986,91242.0,91230.0,0.02716183]
[1767562168152,0.01095974,91243.0,91233.0,0.01096094]
[1767562168351,0.01095962,91244.0,91233.0,0.01096094]
[1767562169004,0.01095962,91244.0,91234.0,0.01096082]
[1767562169209,0.08767686,91246.0,91228.0,0.0004]
[1767562169210,0.01096046,91237.0,91228.0,0.0004]
[1767562169872,0.01096058,91236.0,91228.0,0.0004]
[1767562170067,0.01096046,91237.0,91228.0,0.0004]
[1767562170268,0.01095998,91241.0,91230.0,0.0109613]
[1767562170491,0.01096022,91239.0,91228.0,0.01136154]
[1767562170694,0.01096034,91238.0,91228.0,0.01136154]
[1767562170898,0.01096022,91239.0,91229.0,0.01096142]
[1767562171437,0.01096034,91238.0,91228.0,0.05061966]
[1767562171640,0.01096022,91239.0,91229.0,0.01096142]
[1767562171920,0.01096034,91238.0,91228.0,0.01173339]
[1767562172073,0.01096046,91237.0,91227.0,0.01096166]
[1767562172319,0.01096034,91238.0,91227.0,0.01096166]
[1767562173064,0.01096046,91237.0,91228.0,0.01096154]
[1767562173352,0.01096034,91238.0,91228.0,0.01096154]
[1767562173574,0.01096022,91239.0,91228.0,0.01096154]
[1767562173777,0.01096034,91238.0,91226.0,0.262948]
[1767562174318,0.01096034,91238.0,91228.0,0.01096154]
[1767562175066,0.01096034,91238.0,91229.0,0.01096142]
[1767562175283,0.01096022,91239.0,91228.0,0.01096154]
[1767562175423,0.01096034,91238.0,91227.0,0.05180762]
[1767562176385,0.01096022,91239.0,91229.0,0.01096142]
[1767562176536,0.01096022,91239.0,91229.0,0.35446486]
[1767562176935,0.01096022,91239.0,91229.0,0.30461718]
[1767562177138,0.01096034,91238.0,91229.0,0.35446486]
[1767562177561,0.01096034,91238.0,91229.0,0.34350344]
[1767562177859,0.01096034,91238.0,91229.0,0.35446486]
[1767562178501,0.01096034,91238.0,91229.0,0.01096142]
[1767562178705,0.01096022,91239.0,91229.0,0.01096142]
[1767562179195,0.01096022,91239.0,91228.0,0.35446498]
[1767562179422,0.01096022,91239.0,91229.0,0.01096142]
[1767562179423,0.01096034,91238.0,91229.0,0.01096142]
[1767562179628,0.01096058,91236.0,91228.0,0.34350344]
[1767562179903,0.01096058,91236.0,91228.0,0.30789795]
[1767562180855,0.01096046,91237.0,91228.0,0.30789795]
[1767562181200,0.10458108,91238.0,91228.0,0.13393097]
[1767562181386,0.10458108,91238.0,91228.0,0.11612823]
[1767562181590,0.01096058,91236.0,91228.0,0.11612823]
[1767562181976,0.01096046,91237.0,91228.0,0.06628054]
[1767562182926,0.01096058,91236.0,91228.0,0.06628054]
[1767562183279,0.01096046,91237.0,91228.0,0.06628054]
[1767562183609,0.01096046,91237.0,91228.0,0.04135669]
[1767562184260,0.06073925,91238.0,91228.0,0.04135669]
[1767562184407,0.01096046,91237.0,91228.0,0.05231823]
[1767562184609,0.01096046,91237.0,91228.0,0.01096154]
[1767562185065,0.01096046,91237.0,91227.0,0.3544651]
[1767562185812,0.06073925,91238.0,91227.0,0.31885958]
[1767562186548,0.04977891,91238.0,91228.0,0.01096154]
[1767562186868,0.04977891,91238.0,91229.0,0.01096142]
[1767562187160,0.04977891,91238.0,91227.0,0.35670457]
[1767562187598,0.03288022,91239.0,91227.0,0.35670457]
[1767562187599,0.02192,91239.0,91238.0,0.000999]
[1767562188098,0.02192,91239.0,91232.0,0.01096106]
[1767562188293,0.02192,91239.0,91235.0,0.0109607]
[1767562188712,0.02192,91239.0,91234.0,0.01096082]
[1767562189071,0.02192,91239.0,91232.0,0.06576599]
[1767562189072,0.00192,91239.0,91232.0,0.01096106]
[1767562189702,0.00192,91239.0,91233.0,0.01096094]
[1767562191304,0.01096046,91237.0,91227.0,0.01096166]
[1767562191644,0.01096058,91236.0,91226.0,0.52987395]
[1767562191805,0.01096046,91237.0,91226.0,0.01096178]
[1767562192007,0.01096046,91237.0,91227.0,0.01096166]
[1767562192226,0.01096034,91238.0,91227.0,0.01096166]
[1767562192427,0.01096034,91238.0,91228.0,0.01096154]
[1767562192741,0.01288022,91239.0,91229.0,0.01096142]
[1767562192907,0.01288022,91239.0,91229.0,0.01091737]
[1767562193554,0.01288022,91239.0,91229.0,0.01087332]
[1767562193758,0.01288022,91239.0,91228.0,0.01096154]
[1767562194640,0.01096034,91238.0,91228.0,0.01096154]
[1767562194844,0.01096046,91237.0,91228.0,0.01096154]
[1767562195360,0.01096034,91238.0,91228.0,0.01096154]
[1767562195742,0.01096034,91238.0,91228.0,0.35446498]
[1767562196566,0.01096046,91237.0,91227.0,0.01096166]
[1767562196770,0.0049208,91238.0,91227.0,0.01096166]
[1767562196932,0.01096046,91237.0,91226.0,1.146636]
[1767562197119,0.0049208,91238.0,91228.0,0.01096154]
[1767562197743,0.05469971,91238.0,91225.0,0.04112803]
[1767562197939,0.05469971,91238.0,91226.0,0.516231]
[1767562198143,0.01096046,91237.0,91227.0,0.01096166]
[1767562198563,0.05469971,91238.0,91227.0,0.01096166]
[1767562199163,0.01096046,91237.0,91228.0,0.01096154]
[1767562199371,0.05469971,91238.0,91228.0,0.01096154]
[1767562199569,0.01096046,91237.0,91226.0,0.00796143]
[1767562199847,0.05469971,91238.0,91228.0,0.01096154]
[1767562200066,0.01096046,91237.0,91227.0,0.01096166]
[1767562200646,0.0049208,91238.0,91228.0,0.01096154]
[1767562200847,0.01096046,91237.0,91227.0,0.01096166]
[1767562201072,0.0049208,91238.0,91228.0,0.01096154]
[1767562201284,0.0049208,91238.0,91226.0,0.00796143]
[1767562201522,0.00192,91239.0,91229.0,0.01096142]
[1767562201820,0.000921,91239.0,91233.0,0.01096094]
[1767562202025,0.000921,91239.0,91231.0,0.01591938]
[1767562202352,0.000921,91239.0,91232.0,0.01096106]
[1767562202796,0.000921,91239.0,91234.0,0.01096082]
[1767562203397,0.000921,91239.0,91233.0,0.01096094]
[1767562203610,0.000921,91239.0,91234.0,0.01096082]
[1767562203776,0.000921,91239.0,91231.0,0.02415831]
[1767562204201,0.04977891,91243.0,91231.0,0.02415831]
[1767562204399,0.01192,91242.0,91231.0,0.02415831]
[1767562204649,0.01192,91242.0,91234.0,0.01096082]
[1767562204915,0.01192,91242.0,91235.0,0.0109607]
[1767562206149,0.01192,91242.0,91234.0,0.01096082]
[1767562206326,0.06056224,91242.0,91233.0,0.01096094]
[1767562206502,0.06056224,91242.0,91234.0,0.01096082]
[1767562206906,0.06056224,91242.0,91232.0,0.03784063]
[1767562207428,0.06056224,91242.0,91233.0,0.01096094]
[1767562207633,0.06056224,91242.0,91232.0,0.02387806]
[1767562207985,0.06056224,91242.0,91234.0,0.01096082]
[1767562209819,0.06056224,91242.0,91232.0,0.01096106]
[1767562210285,0.06056224,91242.0,91235.0,0.0109607]
[1767562211254,0.06056224,91242.0,91233.0,0.01096094]
[1767562211947,0.06056224,91242.0,91232.0,0.02687983]
[1767562212157,0.05056224,91242.0,91232.0,0.02687983]
[1767562212399,0.05056224,91242.0,91234.0,0.01096082]
[1767562213187,0.05056224,91242.0,91233.0,0.01096094]
[1767562215323,0.00192,91242.0,91234.0,0.05480413]
[1767562215538,0.00192,91242.0,91234.0,0.01096082]
[1767562216036,0.00192,91242.0,91230.0,0.39754396]
[1767562216254,0.00192,91242.0,91233.0,0.01096094]
[1767562216553,0.00192,91242.0,91234.0,0.01096082]
[1767562216963,0.00192,91242.0,91233.0,0.02687896]
[1767562217167,0.00192,91242.0,91235.0,0.0109607]
[1767562217926,0.00192,91242.0,91234.0,0.01096082]
[1767562218835,0.00192,91242.0,91235.0,0.0109607]
[1767562219842,0.02192,91242.0,91235.0,0.0109607]
[1767562220481,0.02192,91242.0,91235.0,0.06576421]
[1767562220682,0.02192,91253.0,91246.0,0.0547965]
[1767562220837,0.02197519,91253.0,91250.0,0.0109589]
[1767562221039,0.02197519,91253.0,91249.0,0.01095902]
[1767562221470,0.02197519,91253.0,91248.0,0.06575445]
[1767562221668,0.02197519,91253.0,91248.0,0.01095914]
[1767562221847,0.02197519,91253.0,91246.0,0.05207239]
[1767562222070,0.02197519,91253.0,91247.0,0.01095926]
[1767562222265,0.02197519,91253.0,91246.0,0.01095938]
[1767562222885,0.02197519,91253.0,91247.0,0.01095926]
[1767562223801,0.02197519,91253.0,91246.0,0.01095938]
[1767562224012,0.02197519,91253.0,91247.0,0.01095926]
[1767562224215,0.02169933,91253.0,91246.0,0.01095938]
[1767562224419,0.02169933,91253.0,91247.0,0.01095926]
[1767562224559,0.02169933,91253.0,91248.0,0.01095914]
[1767562226576,0.02169933,91253.0,91249.0,0.01095902]
[1767562226775,0.02169933,91253.0,91248.0,0.01095914]
[1767562226976,0.02169933,91253.0,91247.0,0.02687253]
[1767562227696,0.01269933,91253.0,91247.0,0.01095926]
[1767562227893,0.01269933,91253.0,91245.0,0.05479702]
[1767562228122,0.0126305,91253.0,91247.0,0.01095926]
[1767562228673,0.0126305,91253.0,91248.0,0.01095914]
[1767562229317,0.0126305,91253.0,91247.0,0.01095926]
[1767562229708,0.0126305,91253.0,91248.0,0.01095914]
[1767562230059,0.01235453,91253.0,91248.0,0.01095914]
[1767562230455,0.01235453,91253.0,91247.0,0.01095926]
[1767562231374,0.01235453,91253.0,91245.0,0.05479702]
[1767562231576,0.01235453,91253.0,91245.0,0.02987627]
[1767562232074,0.01235453,91253.0,91243.0,0.03985709]
[1767562232237,0.01235453,91253.0,91248.0,0.01095914]
[1767562232865,0.01095722,91264.0,91252.0,0.01095866]
[1767562233181,0.01095722,91264.0,91254.0,0.34350344]
[1767562233677,0.01095722,91264.0,91252.0,0.01095866]
[1767562233883,0.000999,91252.0,91251.0,0.049946]
[1767562234076,0.01095746,91262.0,91251.0,0.049946]
[1767562234474,0.01095758,91261.0,91249.0,0.06575376]
[1767562234679,0.00089899,91249.0,91247.0,0.049946]
[1767562234876,0.0003023,91249.0,91247.0,0.049946]
[1767562235418,0.01095806,91257.0,91247.0,0.049946]
[1767562235617,0.01095806,91257.0,91247.0,0.39344944]
[1767562235775,0.01095818,91256.0,91247.0,0.39344944]
[1767562236160,0.01095806,91257.0,91247.0,0.39344944]
[1767562237215,0.01095806,91257.0,91247.0,0.34360961]
[1767562237769,0.01095782,91259.0,91247.0,0.35456887]
[1767562237969,0.01095782,91259.0,91248.0,0.01095914]
[1767562238228,0.01095794,91258.0,91248.0,0.01095914]
[1767562238408,0.01095782,91259.0,91248.0,0.01095914]
[1767562239125,0.01095794,91258.0,91247.0,0.01095926]
[1767562239424,0.06036656,91258.0,91246.0,0.03287938]
[1767562239723,0.04940862,91256.0,91247.0,0.01095926]
[1767562239926,0.01095794,91258.0,91248.0,0.02192]
[1767562240367,0.01095782,91259.0,91248.0,0.02192]
[1767562240853,0.01095794,91258.0,91247.0,0.03287926]
[1767562241417,0.01095794,91258.0,91247.0,0.01507931]
[1767562242038,0.04940862,91261.0,91247.0,0.07671572]
[1767562242219,0.0109577,91260.0,91249.0,0.01095902]
[1767562242420,0.01095782,91259.0,91248.0,0.01095914]
[1767562243537,0.0109577,91260.0,91249.0,0.01095902]
[1767562244358,0.01095782,91259.0,91248.0,0.01095914]
[1767562244519,0.0109577,91260.0,91248.0,0.01095914]
[1767562245221,0.0109577,91260.0,91249.0,0.01095902]
[1767562245423,0.01095782,91259.0,91248.0,0.01095914]
[1767562245818,0.01095782,91259.0,91247.0,0.08767498]
[1767562245819,0.0109577,91260.0,91247.0,0.06303422]
[1767562246533,0.06036644,91259.0,91248.0,0.01095914]
[1767562247074,0.01095782,91259.0,91247.0,0.0241535]
[1767562247368,0.0109577,91260.0,91248.0,0.01095914]
[1767562247715,0.0109577,91260.0,91247.0,0.01019271]
[1767562247924,0.0049577,91260.0,91248.0,0.01095914]
[1767562249587,0.0049577,91260.0,91249.0,0.01095902]
[1767562250117,0.0603662,91261.0,91249.0,0.01095902]
[1767562251085,0.0109577,91260.0,91249.0,0.01095902]
[1767562251286,0.06036632,91260.0,91247.0,0.06494347]
[1767562251871,0.06036632,91260.0,91247.0,0.02934357]
[1767562252071,0.06036632,91260.0,91246.0,0.01238309]
[1767562252267,0.06036632,91260.0,91249.0,0.01095902]
[1767562255783,0.05636632,91260.0,91249.0,0.01095902]
[1767562256158,0.04940862,91260.0,91249.0,0.01095902]
[1767562256507,0.06036632,91260.0,91244.0,0.02192]
[1767562257039,0.06036632,91260.0,91247.0,0.05479572]
[1767562257236,0.06036632,91260.0,91249.0,0.01095902]
[1767562257879,0.06036632,91260.0,91247.0,0.03015484]
[1767562258427,0.06036632,91260.0,91249.0,0.01095902]
[1767562259776,0.06036632,91260.0,91249.0,0.01091406]
[1767562261734,0.01095782,91259.0,91248.0,0.01095914]
[1767562261887,0.06004054,91259.0,91248.0,0.01095914]
[1767562262087,0.06004054,91259.0,91246.0,0.03783427]
[1767562262989,0.04908272,91259.0,91248.0,0.01095914]
[1767562263194,0.04908272,91257.0,91247.0,0.01095926]
[1767562263472,0.04408272,91257.0,91247.0,0.01095926]
[1767562263952,0.05504078,91257.0,91246.0,0.01095938]
[1767562264152,0.05504078,91257.0,91245.0,0.0109595]
[1767562264353,0.05504078,91257.0,91246.0,0.01095938]
[1767562264535,0.04408272,91257.0,91246.0,0.01095938]
[1767562264855,0.04408272,91257.0,91247.0,0.01095926]
[1767562266755,0.04408272,91257.0,91248.0,0.01095914]
[1767562267102,0.04408272,91257.0,91246.0,0.03783449]
[1767562267653,0.04408272,91257.0,91248.0,0.01095914]
[1767562268055,0.04408272,91257.0,91247.0,0.01095926]
[1767562269079,0.04408272,91257.0,91248.0,0.01095914]
[1767562269285,0.04408272,91257.0,91246.0,0.04879387]
[1767562269286,0.04408272,91257.0,91246.0,0.01095938]
[1767562269487,0.04408272,91257.0,91247.0,0.01095926]
[1767562269861,0.04408272,91257.0,91244.0,0.05207591]
[1767562270672,0.05504078,91257.0,91246.0,0.01095938]
[1767562270867,0.05504078,91257.0,91247.0,0.01095926]
[1767562271065,0.04504078,91257.0,91247.0,0.01095926]
[1767562271278,0.03408272,91257.0,91247.0,0.01095926]
[1767562272053,0.03408272,91257.0,91246.0,0.05479657]
[1767562272254,0.03408272,91257.0,91247.0,0.0547959]
[1767562273291,0.03408272,91257.0,91249.0,0.01095902]
[1767562273499,0.03408272,91257.0,91250.0,0.0109589]
[1767562273701,0.02192,91263.0,91259.0,0.01095782]
[1767562273898,0.02192,91267.0,91259.0,0.01081282]
[1767562274105,0.02192,91267.0,91258.0,0.01095794]
[1767562274313,0.04908272,91266.0,91258.0,0.01095794]
[1767562274477,0.04908272,91266.0,91259.0,0.01095782]
[1767562275318,0.04908272,91266.0,91258.0,0.01095794]
[1767562275716,0.000303,91258.0,91256.0,0.01095818]
[1767562275891,0.00023416,91258.0,91254.0,0.04126462]
[1767562276101,0.04908272,91266.0,91254.0,0.04126462]
[1767562276834,0.02192,91267.0,91254.0,0.04126462]
[1767562276992,0.03287686,91267.0,91256.0,0.01095818]
[1767562277190,0.02192,91267.0,91254.0,0.0133447]
[1767562278245,0.04908272,91266.0,91257.0,0.01095806]
[1767562278404,0.04901388,91266.0,91257.0,0.01095806]
[1767562281083,0.04901388,91266.0,91258.0,0.01095794]
[1767562281848,0.04901388,91266.0,91255.0,0.06302612]
[1767562282085,0.04908272,91265.0,91250.0,0.05479442]
[1767562282314,0.03287686,91267.0,91249.0,0.01095902]
[1767562282315,0.02192,91267.0,91249.0,0.01095902]
[1767562283187,0.02192,91267.0,91258.0,0.01095794]
[1767562283709,0.02192,91267.0,91257.0,0.01095806]
[1767562284240,0.03287686,91267.0,91256.0,0.01095818]
[1767562284540,0.02192,91267.0,91256.0,0.01095818]
[1767562285088,0.02192,91267.0,91257.0,0.01095806]
[1767562286254,0.03287686,91267.0,91256.0,0.01095818]
[1767562286404,0.02192,91267.0,91257.0,0.01095806]
[1767562287155,0.02192,91267.0,91255.0,0.02687092]
[1767562287372,0.02192,91267.0,91257.0,0.01095806]
[1767562288084,0.02192,91267.0,91254.0,0.06574998]
[1767562288245,0.02192,91267.0,91257.0,0.01095806]
[1767562290246,0.04908272,91266.0,91257.0,0.01095806]
[1767562292162,0.04908272,91266.0,91255.0,0.02687094]
[1767562292372,0.02192,91267.0,91257.0,0.01095806]
[1767562293952,0.02192,91267.0,91255.0,0.01318976]
[1767562294096,0.0109571,91265.0,91255.0,0.0109583]
[1767562294309,0.0109571,91265.0,91254.0,0.06574998]
[1767562294508,0.0109571,91265.0,91255.0,0.0109583]
[1767562294690,0.03287686,91267.0,91256.0,0.01095818]
[1767562296207,0.0876616,91267.0,91253.0,0.06575125]
[1767562296408,0.0109571,91265.0,91255.0,0.0109583]
[1767562296582,0.01095698,91266.0,91255.0,0.0109583]
[1767562296786,0.01095698,91266.0,91256.0,0.01095818]
[1767562297076,0.01095698,91266.0,91253.0,0.04878977]
[1767562298262,0.01095698,91266.0,91256.0,0.01095818]
[1767562298605,0.01095698,91266.0,91256.0,0.35424179]
[1767562300137,0.01095698,91266.0,91256.0,0.34328361]
[1767562301147,0.0109571,91265.0,91255.0,0.0109583]
[1767562301548,0.01095698,91266.0,91255.0,0.0109583]
[1767562302388,0.01095698,91266.0,91253.0,0.03182864]
[1767562303230,0.0109571,91265.0,91255.0,0.0109583]
[1767562303879,0.0109571,91265.0,91254.0,0.01095842]
[1767562304081,0.0109571,91265.0,91255.0,0.0109583]
[1767562304506,0.06080278,91265.0,91255.0,0.0109583]
[1767562306185,0.0109571,91265.0,91255.0,0.0109583]
[1767562306368,0.01095698,91266.0,91256.0,0.01095818]
[1767562306771,0.0109571,91265.0,91255.0,0.0109583]
[1767562307083,0.0109571,91265.0,91252.0,0.01095866]
[1767562307289,0.0109571,91265.0,91254.0,0.01095842]
[1767562308281,0.0109571,91265.0,91253.0,0.01095854]
[1767562308282,0.01095734,91263.0,91253.0,0.01095854]
[1767562308438,0.0109571,91265.0,91254.0,0.01095842]
[1767562308848,0.0109571,91265.0,91255.0,0.0109583]
[1767562309012,0.0109571,91265.0,91254.0,0.01095842]
[1767562309995,0.0109571,91265.0,91252.0,0.05207107]
[1767562310740,0.06080278,91265.0,91254.0,0.01095842]
[1767562312306,0.06080278,91265.0,91252.0,0.02415176]
[1767562312895,0.06080278,91265.0,91262.0,0.00050312]
[1767562313098,0.06080278,91265.0,91252.0,0.02266699]
[1767562313300,0.06080278,91265.0,91254.0,0.01095842]
[1767562314135,0.04984568,91261.0,91252.0,0.01095866]
[1767562314327,0.0493613,91261.0,91253.0,0.01095854]
[1767562314668,0.04876464,91261.0,91253.0,0.01095854]
[1767562315545,0.04876464,91261.0,91252.0,0.01095866]
[1767562315885,0.04876464,91261.0,91250.0,0.38439741]
[1767562317134,0.04876464,91261.0,91250.0,0.3345606]
[1767562317361,0.04876464,91261.0,91253.0,0.01095854]
[1767562320069,0.01095746,91262.0,91252.0,0.01095866]
[1767562320231,0.01095746,91262.0,91251.0,0.02191756]
[1767562320433,0.01095746,91262.0,91252.0,0.01095866]
[1767562320929,0.01095758,91261.0,91251.0,0.01095878]
[1767562321270,0.01095746,91262.0,91251.0,0.02191756]
[1767562321456,0.04975365,91259.0,91251.0,0.01095878]
[1767562321651,0.0109577,91260.0,91251.0,0.01095878]
[1767562321970,0.04975365,91259.0,91251.0,0.01095878]
[1767562322537,0.06011482,91259.0,91251.0,0.01095878]
[1767562322733,0.049157,91259.0,91251.0,0.01095878]
[1767562324147,0.049157,91259.0,91251.0,0.02191756]
[1767562324305,0.049157,91259.0,91251.0,0.01095878]
[1767562324621,0.01095758,91261.0,91251.0,0.01095878]
[1767562324828,0.0109577,91260.0,91251.0,0.01095878]
[1767562325378,0.01095758,91261.0,91251.0,0.01095878]
[1767562325577,0.0109577,91260.0,91251.0,0.01095878]
[1767562326853,0.0109577,91260.0,91251.0,0.02191756]
[1767562327053,0.0109577,91260.0,91251.0,0.01095878]
[1767562329372,0.01095782,91259.0,91251.0,0.01095878]
[1767562329584,0.01095794,91258.0,91251.0,0.01095878]
[1767562329783,0.01088897,91259.0,91251.0,0.01095878]
[1767562330527,0.01095782,91259.0,91251.0,0.01095878]
[1767562330727,0.0109577,91260.0,91251.0,0.01095878]
[1767562331418,0.01095758,91261.0,91251.0,0.01095878]
[1767562331994,0.01095758,91261.0,91251.0,0.02191756]
[1767562332134,0.0109577,91260.0,91251.0,0.01095878]
[1767562332335,0.04975365,91259.0,91251.0,0.01095878]
[1767562334209,0.02839498,91259.0,91253.0,0.01095854]
[1767562334697,0.02839498,91259.0,91252.0,0.01095866]
[1767562336710,0.02839498,91259.0,91253.0,0.01095854]
[1767562337703,0.02839498,91259.0,91252.0,0.01095866]
[1767562338042,0.01095746,91262.0,91252.0,0.01095866]
[1767562338407,0.01095758,91261.0,91251.0,0.01095878]
[1767562338574,0.01095746,91262.0,91252.0,0.01095866]
[1767562338781,0.01095758,91261.0,91251.0,0.01095878]
[1767562338999,0.01095782,91259.0,91251.0,0.01095878]
[1767562339235,0.24105908,91267.0,91232.0,0.21921897]
[1767562339236,0.06075265,91251.0,91236.0,0.01096058]
[1767562339436,0.04975365,91247.0,91242.0,0.01095782]
[1767562339645,0.01095926,91247.0,91242.0,0.01095782]
[1767562339814,0.01095926,91247.0,91237.0,0.34328361]
[1767562340020,0.04902179,91246.0,91239.0,0.03286441]
[1767562340221,0.04902179,91245.0,91239.0,0.03286441]
[1767562340537,0.04902179,91245.0,91238.0,0.03286441]
[1767562340839,0.05998129,91245.0,91238.0,0.03286441]
[1767562341101,0.03806205,91242.0,91238.0,0.03286441]
[1767562341273,1.09544036,91288.0,91222.0,0.05521115]
[1767562341274,0.0109607,91235.0,91222.0,0.05521115]
[1767562341476,0.0109607,91235.0,91227.0,0.04871393]
[1767562341626,0.0109607,91235.0,91226.0,0.03286837]
[1767562341828,0.0109607,91235.0,91227.0,0.04871393]
[1767562342130,0.0109607,91235.0,91226.0,0.03286837]
[1767562344631,0.01096082,91234.0,91226.0,0.03286837]
[1767562344848,0.0109607,91235.0,91226.0,0.01886032]
[1767562344982,0.0109607,91235.0,91225.0,0.0109619]
[1767562345191,0.0109607,91235.0,91226.0,0.142717]
[1767562345415,0.0109607,91235.0,91226.0,0.04871393]
[1767562345800,0.01096082,91234.0,91230.0,0.04871393]
[1767562346763,0.01089184,91235.0,91230.0,0.04871393]
[1767562346966,0.01096046,91237.0,91230.0,0.04871393]
[1767562347297,0.01096058,91236.0,91230.0,0.04871393]
[1767562347955,0.0109607,91235.0,91230.0,0.04871393]
[1767562348107,0.01096082,91234.0,91230.0,0.04871393]
[1767562348521,0.01096082,91234.0,91230.0,0.04866988]
[1767562348738,0.01091586,91234.0,91230.0,0.04866988]
[1767562348912,0.0109607,91235.0,91230.0,0.04866988]
[1767562351255,0.0109607,91235.0,91230.0,0.04853194]
[1767562351660,0.0109607,91235.0,91230.0,0.04839401]
[1767562351851,0.0109607,91235.0,91230.0,0.04834996]
[1767562352060,0.01096082,91234.0,91230.0,0.04834996]
[1767562353392,0.01096082,91234.0,91230.0,0.04821203]
[1767562353630,0.01096082,91234.0,91230.0,0.04807411]
[1767562356665,0.01096082,91234.0,91230.0,0.01837411]
[1767562357307,0.01096082,91234.0,91225.0,0.01096082]
[1767562357508,0.01096082,91234.0,91226.0,0.102999]
[1767562357748,0.01096082,91234.0,91226.0,0.15231141]
[1767562357940,0.01096082,91234.0,91226.0,0.04931241]
[1767562358406,0.01096082,91234.0,91226.0,0.102999]
[1767562359521,0.01096082,91234.0,91225.0,0.131804]
[1767562359737,0.01096082,91234.0,91226.0,0.04931241]
[1767562359991,0.01096082,91234.0,91226.0,0.01096082]
[1767562360523,0.01096082,91234.0,91227.0,0.02192]
[1767562361359,0.01096082,91234.0,91228.0,0.04931241]
[1767562361561,0.01096094,91233.0,91228.0,0.04931241]
[1767562361757,0.01096082,91234.0,91228.0,0.04931241]
[1767562362866,0.01096094,91233.0,91228.0,0.04931241]
[1767562363288,0.01096082,91234.0,91228.0,0.04931241]
[1767562364054,0.0109613,91230.0,91221.0,0.01096238]
[1767562364228,0.0109613,91230.0,91218.0,0.05481349]
[1767562364229,0.04868783,91236.0,91223.0,0.03286867]
[1767562364398,0.01096202,91224.0,91221.0,0.02192]
[1767562364606,0.04868783,91225.0,91221.0,0.02192]
[1767562364788,0.0109619,91225.0,91219.0,0.0004]
[1767562364998,0.01096178,91226.0,91220.0,0.04971241]
[1767562365199,0.01096166,91227.0,91220.0,0.04971241]
[1767562365447,0.01096202,91224.0,91220.0,0.0004]
[1767562365646,0.01096202,91224.0,91221.0,0.04931241]
[1767562366244,0.0109619,91225.0,91221.0,0.04931241]
[1767562366427,0.01096178,91226.0,91221.0,0.04931241]
[1767562366872,0.0109619,91225.0,91221.0,0.04931241]
[1767562368297,0.01096178,91226.0,91221.0,0.04931241]
[1767562368640,0.01096202,91224.0,91220.0,0.0004]
[1767562368847,0.03290305,91228.0,91220.0,0.0495745]
[1767562369046,0.01096142,91229.0,91228.0,0.000999]
[1767562369245,0.01096142,91229.0,91228.0,0.00072321]
[1767562369698,0.01096154,91228.0,91220.0,0.0495745]
[1767562370563,0.01096166,91227.0,91220.0,0.00026209]
[1767562370883,0.01096166,91227.0,91220.0,0.0495745]
[1767562371196,0.01096154,91228.0,91220.0,0.0495745]
[1767562371900,0.01096166,91227.0,91220.0,0.0495745]
[1767562372052,0.01096178,91226.0,91220.0,0.0495745]
[1767562372467,0.01096202,91224.0,91220.0,0.0495745]
[1767562372776,0.0109619,91225.0,91220.0,0.0495745]
[1767562373374,0.01096202,91224.0,91220.0,0.0495745]
[1767562373807,0.0109619,91225.0,91220.0,0.0495745]
[1767562374405,0.01096178,91226.0,91220.0,0.0495745]
[1767562374770,0.01096166,91227.0,91220.0,0.0495745]
[1767562375549,0.01096178,91226.0,91220.0,0.00026209]
[1767562376134,0.01096166,91227.0,91220.0,0.00026209]
[1767562377139,0.01096178,91226.0,91220.0,0.00026209]
[1767562377339,0.01096166,91227.0,91220.0,0.00026209]
[1767562377748,0.0037441,91223.0,91220.0,9e-08]
[1767562378095,0.01470624,91223.0,91220.0,9e-08]
[1767562378295,0.01470624,91223.0,91219.0,0.0004]
[1767562378845,0.0037441,91223.0,91219.0,0.00045519]
[1767562379048,0.01096226,91222.0,91219.0,0.00045519]
[1767562379243,0.01470624,91223.0,91219.0,0.00045519]
[1767562379485,0.01096214,91223.0,91219.0,0.00045519]
[1767562380017,0.01096202,91224.0,91219.0,0.00045519]
[1767562380434,0.01076199,91224.0,91219.0,0.04862252]
[1767562380606,0.0109619,91225.0,91219.0,0.04862252]
[1767562381754,0.01096214,91223.0,91219.0,0.00045519]
[1767562382666,0.01096202,91224.0,91219.0,0.00045519]
[1767562383272,0.01096202,91224.0,91219.0,0.0003173]
[1767562383777,0.01096214,91223.0,91220.0,0.04816733]
[1767562384376,0.0109619,91225.0,91220.0,0.04816733]
[1767562384883,0.0109619,91225.0,91219.0,0.0003173]
[1767562387283,0.0109619,91225.0,91220.0,0.04816733]
[1767562387822,0.0109619,91225.0,91220.0,0.04802944]
[1767562388899,0.01096202,91224.0,91220.0,0.04802944]
[1767562389134,0.0109619,91225.0,91220.0,0.04802944]
[1767562389774,0.01096178,91226.0,91220.0,0.04802944]
[1767562390029,0.01089292,91226.0,91225.0,0.000986]
[1767562390309,0.01089292,91226.0,91225.0,0.00084812]
[1767562390476,0.0109619,91225.0,91220.0,0.04802944]
[1767562391292,0.06577203,91225.0,91220.0,0.04802944]
[1767562391491,0.01096202,91224.0,91220.0,0.04802944]
[1767562391713,0.01096214,91223.0,91220.0,0.04802944]
[1767562392053,0.01096214,91223.0,91220.0,0.0479854]
[1767562392829,0.01096202,91224.0,91220.0,0.0479854]
[1767562394352,0.01096202,91224.0,91220.0,0.04784752]